[Event "44th Chess Olympiad Open 2022"]
[Site "Chennai"]
[Date "2022.08.07"]
[Round "9.39"]
[White "Solomon, Kenny"]
[Black "Christie, Joshua"]
[Result "1/2-1/2"]
[WhiteElo "2355"]
[BlackElo "2272"]
[Annotator "RC"]
[PlyCount "156"]
[EventDate "2022.??.??"]
[TimeControl "60"]

1. d4 {[%emt 0:00:04]} Nf6 {[%emt 0:00:49]} 2. Nf3 {[%emt 0:00:09]} e6 {
[%emt 0:00:12]} 3. Bf4 {[%emt 0:00:17]} c5 {[%emt 0:01:10]} 4. e3 {[%emt 0:00:
00]} d5 {[%emt 0:00:39]} 5. Nbd2 {[%emt 0:00:19]} Bd6 {[%emt 0:01:12]} 6. dxc5
{[%emt 0:00:15]} Bxc5 {[%emt 0:03:05]} 7. Bd3 {[%emt 0:00:04]} Nc6 {[%emt 0:00:
00]} 8. O-O {[%emt 0:00:07]} O-O {[%emt 0:02:16]} 9. c4 {[%emt 0:00:37]} Qe7 {
[%emt 0:05:37]} 10. Qb1 {[%emt 0:14:04]} Rd8 {[%emt 0:09:49]} 11. Rd1 {[%emt 0:
00:00]} h6 {[%emt 0:07:24]} 12. Bg3 {[%emt 0:11:18]} Nh5 {[%emt 0:04:40]} 13.
cxd5 {[%emt 0:03:17]} exd5 {[%emt 0:02:30]} 14. Nb3 {[%emt 0:00:22]} Bb6 {
[%emt 0:01:36]} 15. Bh7+ {[%emt 0:02:56]} Kh8 {[%emt 0:06:02]} 16. Bf5 {
[%emt 0:00:38]} Nxg3 {[%emt 0:01:02]} 17. hxg3 {[%emt 0:00:10]} Qf6 {[%emt 0:
00:00]} 18. Bxc8 {[%emt 0:07:10]} Raxc8 {[%emt 0:00:14]} 19. a4 {[%emt 0:13:19]
} a5 {[%emt 0:02:54]} 20. Ra3 {[%emt 0:12:45]} Nb4 {[%emt 0:08:17]} 21. Nbd4 {
[%emt 0:00:17]} Rc4 {[%emt 0:01:50]} 22. Rc3 {[%emt 0:00:35]} Rdc8 {[%emt 0:00:
00]} 23. Rdc1 {[%emt 0:00:48]} g6 {[%emt 0:12:11]} 24. Nd2 {[%emt 0:02:15]}
R4c5 {[%emt 0:02:49]} 25. Rxc5 {[%emt 0:05:34]} Rxc5 {[%emt 0:00:44]} 26. Rd1 {
[%emt 0:01:14]} Rc8 {[%emt 0:01:06]} 27. N2f3 {[%emt 0:00:23]} Qe7 {[%emt 0:00:
00]} 28. Nb5 {[%emt 0:04:20]} Rc2 {[%emt 0:13:52]} 29. Nfd4 {[%emt 0:00:12]}
Bxd4 {[%emt 0:01:11]} 30. Nxd4 {[%emt 0:00:03]} Rc5 {[%emt 0:00:48]} 31. Nb5 {
[%emt 0:01:28]} Qe5 {[%emt 0:04:09]} 32. Nc3 {[%emt 0:00:43]} Rc4 {[%emt 0:00:
00]} 33. Nb5 {[%emt 0:01:44]} Kg7 {[%emt 0:00:50]} 34. Rd2 {[%emt 0:00:33]} h5
{[%emt 0:00:48]} 35. Qd1 {[%emt 0:00:45]} h4 {[%emt 0:00:54]} 36. gxh4 {
[%emt 0:00:24]} Rxh4 {[%emt 0:00:43]} 37. g3 {[%emt 0:00:01]} Rh5 {[%emt 0:00:
00]} 38. Qf3 {[%emt 0:00:56]} Rf5 {[%emt 0:00:43]} 39. Qg4 {[%emt 0:00:02]} Qf6
{[%emt 0:00:35]} 40. Qd4 {[%emt 0:01:12]} Re5 {[%emt 0:00:28]} 41. f4 {[%emt 0:
00:00]} Re4 {[%emt 0:04:14]} 42. Qxf6+ {[%emt 0:00:12]} Kxf6 {[%emt 0:00:08]}
43. Kf2 {[%emt 0:00:12]} b6 {[%emt 0:12:17]} 44. Nc3 {[%emt 0:05:30]} Rc4 {
[%emt 0:00:36]} 45. Kf3 {[%emt 0:00:14]} Ke6 {[%emt 0:00:48]} 46. g4 {[%emt 0:
00:00]} f6 {[%emt 0:01:15]} 47. Rd1 {[%emt 0:03:44]} g5 {[%emt 0:01:15]} 48.
fxg5 {[%emt 0:01:52]} fxg5 {[%emt 0:00:02]} 49. Rh1 {[%emt 0:01:13]} Nc6 {
[%emt 0:03:12]} 50. Rh6+ {[%emt 0:01:30]} Kf7 {[%emt 0:00:09]} 51. Ke2 {
[%emt 0:00:43]} d4 {[%emt 0:03:06]} 52. exd4 {[%emt 0:00:33]} Nxd4+ {[%emt 0:
00:00]} 53. Kd3 {[%emt 0:00:02]} Rb4 {[%emt 0:00:01]} 54. Nd5 {[%emt 0:01:21]}
Rxa4 {[%emt 0:00:16]} 55. Rf6+ {[%emt 0:00:21]} Kg7 {[%emt 0:00:31]} 56. Rxb6 {
[%emt 0:00:02]} Nf3 {[%emt 0:00:26]} 57. Rb7+ {[%emt 0:00:32]} Kf8 {[%emt 0:00:
00]} 58. b4 {[%emt 0:01:10]} Ne5+ {[%emt 0:02:37]} 59. Ke4 {[%emt 0:00:22]}
Nxg4 {[%emt 0:01:54]} 60. Kf5 {[%emt 0:00:14]} axb4 {[%emt 0:04:14]} 61. Kxg4 {
[%emt 0:00:28]} b3+ {[%emt 0:00:36]} 62. Kxg5 {[%emt 0:00:47]} Ke8 {[%emt 0:00:
00]} 63. Kf5 {[%emt 0:00:15]} Ra1 {[%emt 0:00:28]} 64. Rxb3 {[%emt 0:00:29]}
Kd7 {[%emt 0:00:12]} 65. Rd3 {[%emt 0:00:14]} Kc6 {[%emt 0:00:22]} 66. Ke5 {
[%emt 0:00:11]} Re1+ {[%emt 0:00:31]} 67. Ne3 {[%emt 0:00:09]} Rc1 {[%emt 0:00:
00]} 68. Rd6+ {[%emt 0:00:28]} Kb5 {[%emt 0:00:21]} 69. Kd4 {[%emt 0:00:32]}
Rh1 {[%emt 0:00:52]} 70. Rg6 {[%emt 0:01:58]} Rh5 {[%emt 0:00:43]} 71. Ng4 {
[%emt 0:00:24]} Rh4 {[%emt 0:00:25]} 72. Kd5 {[%emt 0:00:16]} Rh1 {[%emt 0:00:
00]} 73. Ne5 {[%emt 0:00:58]} Rd1+ {[%emt 0:00:14]} 74. Ke4 {[%emt 0:00:01]}
Re1+ {[%emt 0:00:20]} 75. Kd4 {[%emt 0:00:01]} Rh1 {[%emt 0:00:18]} 76. Rg5 {
[%emt 0:00:18]} Rh4+ {[%emt 0:00:29]} 77. Ng4+ {[%emt 0:00:16]} Kb4 {[%emt 0:
00:00]} 78. Rg8 {[%emt 0:00:06]} Kb5 {[%emt 0:00:15]} 1/2-1/2

[Event "44th Chess Olympiad Open 2022"]
[Site "Chennai"]
[Date "2022.08.07"]
[Round "9.39"]
[White "Mhango, Banele"]
[Black "Lorne, Ras Malaku"]
[Result "1-0"]
[WhiteElo "2238"]
[BlackElo "2079"]
[Annotator "RC"]
[PlyCount "75"]
[EventDate "2022.??.??"]
[TimeControl "60"]

1. d4 {[%emt 0:00:03]} Nf6 {[%emt 0:00:18]} 2. c4 {[%emt 0:00:09]} e6 {[%emt 0:
00:00]} 3. Nc3 {[%emt 0:00:11]} Bb4 {[%emt 0:00:36]} 4. a3 {[%emt 0:00:48]}
Bxc3+ {[%emt 0:00:57]} 5. bxc3 {[%emt 0:00:06]} c5 {[%emt 0:01:44]} 6. f3 {
[%emt 0:03:51]} d5 {[%emt 0:03:56]} 7. cxd5 {[%emt 0:00:11]} exd5 {[%emt 0:00:
00]} 8. e3 {[%emt 0:00:07]} c4 {[%emt 0:00:31]} 9. g4 {[%emt 0:05:20]} Ng8 {
[%emt 0:03:55]} 10. h4 {[%emt 0:02:14]} h5 {[%emt 0:02:32]} 11. g5 {[%emt 0:00:
00]} Qc7 {[%emt 0:03:12]} 12. Ne2 {[%emt 0:01:15]} Ne7 {[%emt 0:03:12]} 13. Kf2
{[%emt 0:02:08]} Bf5 {[%emt 0:17:22]} 14. Bg2 {[%emt 0:07:08]} Nd7 {[%emt 0:00:
00]} 15. Nf4 {[%emt 0:16:05]} Qa5 {[%emt 0:05:16]} 16. Qe1 {[%emt 0:03:36]}
O-O-O {[%emt 0:10:50]} 17. e4 {[%emt 0:07:37]} dxe4 {[%emt 0:03:09]} 18. fxe4 {
[%emt 0:00:05]} Bg4 {[%emt 0:00:06]} 19. Rb1 {[%emt 0:06:19]} Nb6 {[%emt 0:00:
00]} 20. Rf1 {[%emt 0:07:46]} f6 {[%emt 0:03:28]} 21. gxf6 {[%emt 0:00:58]}
gxf6 {[%emt 0:00:26]} 22. Kg1 {[%emt 0:01:09]} Rhg8 {[%emt 0:00:50]} 23. Rb4 {
[%emt 0:07:18]} Nc6 {[%emt 0:02:42]} 24. Qf2 {[%emt 0:01:55]} Nxb4 {[%emt 0:00:
00]} 25. axb4 {[%emt 0:00:06]} Qb5 {[%emt 0:01:44]} 26. Be3 {[%emt 0:00:27]}
Qd7 {[%emt 0:09:04]} 27. Kh2 {[%emt 0:00:36]} Qc7 {[%emt 0:00:41]} 28. Ra1 {
[%emt 0:00:26]} Kb8 {[%emt 0:03:13]} 29. Ra5 {[%emt 0:05:44]} Rde8 {[%emt 0:00:
00]} 30. Kh1 {[%emt 0:03:09]} Qh7 {[%emt 0:00:33]} 31. Qg3 {[%emt 0:10:16]} Qc7
{[%emt 0:02:22]} 32. Rc5 {[%emt 0:01:00]} Qd6 {[%emt 0:00:21]} 33. Qf2 {
[%emt 0:00:39]} Qd7 {[%emt 0:01:33]} 34. Ra5 {[%emt 0:03:40]} Qh7 {[%emt 0:00:
00]} 35. d5 {[%emt 0:01:30]} Rxe4 {[%emt 0:00:43]} 36. Bxb6 {[%emt 0:00:27]}
axb6 {[%emt 0:00:34]} 37. Qxb6 {[%emt 0:00:08]} Kc8 {[%emt 0:00:53]} 38. Ra8+ {
[%emt 0:00:52]} 1-0

[Event "44th Chess Olympiad Open 2022"]
[Site "Chennai"]
[Date "2022.08.07"]
[Round "9.39"]
[White "Smith, Shreyas"]
[Black "Cawdery, Daniel"]
[Result "1/2-1/2"]
[WhiteElo "2147"]
[BlackElo "2417"]
[Annotator "TA"]
[PlyCount "118"]
[EventDate "2022.??.??"]
[TimeControl "60"]

{[%evp 20,118,34,-6,51,39,74,39,64,66,47,43,93,26,33,22,33,23,71,70,81,86,74,
79,75,0,76,65,83,77,172,173,177,166,195,199,216,204,206,-112,195,200,196,197,
190,202,226,188,186,185,252,247,285,243,245,0,0,0,0,0,0,0,0,0,0,0,0,0,0,-38,0,
0,0,0,0,0,0,0,0,0,0,0,0,0,0,0,0,-8,-8,-8,-8,-8,-8,-8,-8,-8,-8,-8,0,-8,-8]} 1.
e4 {[%emt 0:00:04]} c5 {[%emt 0:00:09]} 2. c3 {[%emt 0:00:14]} Nf6 {[%emt 0:00:
00]} 3. e5 {[%emt 0:00:07]} Nd5 {[%emt 0:00:04]} 4. d4 {[%emt 0:00:08]} cxd4 {
[%emt 0:00:03]} 5. Nf3 {[%emt 0:00:06]} Nc6 {[%emt 0:02:15]} 6. Bc4 {[%emt 0:
00:00]} Nb6 {[%emt 0:00:50]} 7. Bb3 {[%emt 0:00:12]} d5 {[%emt 0:00:09]} 8.
exd6 {[%emt 0:00:07]} Qxd6 {[%emt 0:00:04]} 9. O-O {[%emt 0:00:07]} Be6 {
[%emt 0:00:08]} 10. Na3 {[%emt 0:00:14]} Bxb3 $1 {[%emt 0:10:29] is now more
promising than 10...dxc3.} 11. axb3 {[%emt 0:00:11]} (11. Qxb3 $5 {[%cal Ra3b5]
} dxc3 12. Rd1 $11 (12. Nb5 Qb8 $14)) 11... e6 {[%emt 0:09:53] is the legacy
move (11...a6). B22: Sicilian: 2 c3.} ({Black should play} 11... dxc3 $11 12.
Qxd6 exd6) 12. Nb5 $14 {[%emt 0:02:47]} Qb8 {[%emt 0:09:46] [#]} 13. Nfxd4 $146
{[%emt 0:01:08]} ({Predecessor:} 13. g3 a6 14. Bf4 e5 15. Nxe5 axb5 16. Nxc6 {
1-0 (16) Karpatchev,A (2461)-De Labaca,R (2188) Calvi 2004}) 13... Be7 {
[%emt 0:01:55] White is slightly better.} 14. Qg4 {[%emt 0:03:57]} O-O {
[%emt 0:05:50]} 15. Bf4 {[%emt 0:00:41]} Qc8 {[%emt 0:02:06]} (15... h5 $14 16.
Qg3 (16. Bxb8 hxg4 17. Nxc6 bxc6 $11) 16... Nxd4 17. Nxd4 (17. Bxb8 Ne2+ 18.
Kh1 Nxg3+ 19. Bxg3 a6 $11) 17... Qc8) 16. Nxc6 {[%emt 0:07:14] 0x0.
001eba268068dp-1022s more active pieces. The black rooks are badly placed.} (
16. Nc7 $16 {aiming for Nxc6.} Rb8 17. Qg3) 16... Qxc6 $11 {[%emt 0:04:51]} 17.
Nxa7 {[%emt 0:01:08]} Qe4 {[%emt 0:02:30][%cal Yg7g5] Prevents Be5.} 18. Rae1
$40 {[%emt 0:10:52] White has some attack.} Qd3 {[%emt 0:14:48] [#]} (18... Qc2
$1 $11 19. Nb5 Qxb3) 19. Be5 $1 $16 {[%emt 0:09:00][%csl Ge5][%cal Rg4g7]} Qg6
{[%emt 0:03:13]} (19... g6 20. Qd4) 20. Qd4 {[%emt 0:08:36]} Nd5 {[%emt 0:01:
05]} 21. Nb5 {[%emt 0:03:29]} Rfd8 {[%emt 0:00:59][%cal Yd5b4]} 22. Rd1 {
[%emt 0:02:28]} (22. Qc4 $16) 22... Qh5 {[%emt 0:10:59]} (22... Nf6 $11 23. Bd6
Qc2) 23. Qe4 $1 {[%emt 0:04:53]} ({Don't blunder} 23. Bxg7 $2 Nf4 $1 24. Be5
Ne2+ 25. Kh1 Nxd4 $19) 23... Bf8 {[%emt 0:02:39]} 24. Rd4 {[%emt 0:01:54]} f5 {
[%emt 0:03:18]} (24... Ne7 $16) 25. Qe1 $18 {[%emt 0:02:09]} Bc5 {[%emt 0:01:
14]} 26. Rd3 {[%emt 0:06:33]} f4 {[%emt 0:01:32][%cal Yd5e3]} 27. Bd4 {[%emt 0:
06:50] Inhibits Ne3.} Qf5 {[%emt 0:02:58] [#]} 28. Bxc5 $1 {[%emt 0:05:58]
[%cal Yd4c5,Yc5d6,Yd6e5]} Qxd3 {[%emt 0:00:24]} 29. Qxe6+ {[%emt 0:00:07]} Kh8
{[%emt 0:00:02]} 30. Nd6 {[%emt 0:00:09] Prevents Re8.} Rxd6 {[%emt 0:00:57]}
31. Bxd6 {[%emt 0:01:03]} f3 {[%emt 0:01:03][%cal Yd3f1] Strongly threatening .
..Qxf1+!} 32. Re1 {[%emt 0:01:15][%cal Ye6e8] Qe8+! would kill now.} h6 {
[%emt 0:00:26]} 33. gxf3 {[%emt 0:18:14] Threatens to win with Qf7.} Nf6 {
[%emt 0:01:22] [#]} 34. Be5 $1 {[%emt 0:01:45]} Re8 {[%emt 0:00:16]} (34...
Qg6+ $142 35. Kh1 Qh5) 35. Qh3 {[%emt 0:00:20]} Qg6+ {[%emt 0:02:48]} 36. Qg3 {
[%emt 0:00:32]} Qf5 {[%emt 0:00:04] [#]} 37. Re4 $1 {[%emt 0:02:28]} Nh5 $11 {
[%emt 0:00:40]} 38. Bxg7+ {[%emt 0:01:00]} Nxg7 {[%emt 0:00:51][%cal Yh5g7,
Yg7e8,Ye8f6]} 39. Rxe8+ {[%emt 0:00:05]} Nxe8 {[%emt 0:00:02]} 40. Qb8 {
[%emt 0:00:42]} Qg6+ {[%emt 0:02:20]} 41. Kf1 {[%emt 0:30:08]} Qd3+ {[%emt 0:
30:58]} 42. Kg2 {[%emt 0:00:07]} Qg6+ {[%emt 0:00:00]} 43. Qg3 {[%emt 0:00:08]}
Qf7 {[%emt 0:01:20]} 44. h4 {[%emt 0:01:21]} Nf6 {[%emt 0:00:22] Black has
compensation.} 45. Qf4 {[%emt 0:00:22] The position is equal.} Kg7 {[%emt 0:01:
36]} 46. c4 {[%emt 0:00:21]} Qg6+ {[%emt 0:00:00]} 47. Kh3 {[%emt 0:00:00]} Qb1
{[%emt 0:00:00]} 48. Qc7+ {[%emt 0:00:00]} Kg6 {[%emt 0:00:00] ...Qf1+ is the
strong threat.} 49. Qb6 {[%emt 0:00:00]} Qxb2 {[%emt 0:00:00]} 50. Kg2 {
[%emt 0:00:00]} Qe5 {[%emt 0:00:00]} 51. Qxb7 {[%emt 0:00:00]} Qf4 {[%emt 0:00:
00]} 52. h5+ {[%emt 0:00:00]} Kxh5 {[%emt 0:00:00]} 53. Qg7 {[%emt 0:00:00]}
Qg5+ {[%emt 0:00:00]} 54. Qxg5+ {[%emt 0:00:00]} Kxg5 {[%emt 0:00:00] KN-KP}
55. b4 {[%emt 0:00:00]} Kf4 {[%emt 0:00:00]} 56. c5 {[%emt 0:00:00][%cal Yc4c5,
Yc5c6]} Nd7 {[%emt 0:00:00]} 57. c6 {[%emt 0:00:00]} Nb6 {[%emt 0:00:00]} 58.
b5 {[%emt 0:00:00]} h5 {[%emt 0:00:00]} 59. Kh3 {[%emt 0:00:00]} Kxf3 {[%emt 0:
00:00] Black defended with fortune. Weighted Error Value: White=0.13 (very
precise) / Black=0.17 (very precise)} 1/2-1/2

[Event "44th Chess Olympiad Open 2022"]
[Site "Chennai"]
[Date "2022.08.07"]
[Round "9.39"]
[White "Shaw, Jaden"]
[Black "Kobese, Watu"]
[Result "0-1"]
[WhiteElo "1930"]
[BlackElo "2311"]
[Annotator "RC"]
[PlyCount "112"]
[EventDate "2022.??.??"]
[TimeControl "60"]

1. e4 {[%emt 0:00:01]} e5 {[%emt 0:00:08]} 2. Nf3 {[%emt 0:00:44]} Nc6 {
[%emt 0:00:09]} 3. Bb5 {[%emt 0:00:24]} a6 {[%emt 0:00:10]} 4. Bxc6 {[%emt 0:
00:00]} dxc6 {[%emt 0:00:09]} 5. O-O {[%emt 0:00:32]} f6 {[%emt 0:01:11]} 6. d4
{[%emt 0:01:09]} exd4 {[%emt 0:01:02]} 7. Nxd4 {[%emt 0:00:32]} c5 {[%emt 0:00:
00]} 8. Ne2 {[%emt 0:00:57]} Qxd1 {[%emt 0:01:06]} 9. Rxd1 {[%emt 0:00:06]} Bd7
{[%emt 0:00:49]} 10. Nbc3 {[%emt 0:00:56]} O-O-O {[%emt 0:01:36]} 11. Be3 {
[%emt 0:01:01]} b6 {[%emt 0:07:36]} 12. a4 {[%emt 0:01:00]} Re8 {[%emt 0:01:20]
} 13. Rd2 {[%emt 0:03:30]} Bc6 {[%emt 0:09:17]} 14. Rad1 {[%emt 0:07:44]} Ne7 {
[%emt 0:06:32]} 15. Ng3 {[%emt 0:15:08]} Ng6 {[%emt 0:05:09]} 16. b3 {[%emt 0:
00:00]} h5 {[%emt 0:12:27]} 17. f3 {[%emt 0:08:56]} h4 {[%emt 0:01:18]} 18. Nf5
{[%emt 0:02:03]} Ne5 {[%emt 0:06:45]} 19. Bf4 {[%emt 0:04:52]} Ng6 {[%emt 0:00:
00]} 20. Be3 {[%emt 0:02:34]} h3 {[%emt 0:00:15]} 21. Bf2 {[%emt 0:07:20]} hxg2
{[%emt 0:00:50]} 22. Bg3 {[%emt 0:00:54]} c4 {[%emt 0:16:51]} 23. Nd5 {[%emt 0:
00:00]} Ne5 {[%emt 0:05:15]} 24. Kxg2 {[%emt 0:03:15]} cxb3 {[%emt 0:06:21]}
25. cxb3 {[%emt 0:00:30]} Rg8 {[%emt 0:03:50]} 26. Rc2 {[%emt 0:05:33]} Bxd5 {
[%emt 0:02:07]} 27. Rxd5 {[%emt 0:01:32]} Bc5 {[%emt 0:01:10]} 28. a5 {[%emt 0:
00:00]} Kb8 {[%emt 0:01:23]} 29. b4 {[%emt 0:02:04]} Bxb4 {[%emt 0:01:18]} 30.
Rb2 {[%emt 0:00:42]} c6 {[%emt 0:01:24]} 31. Rd7 {[%emt 0:01:13]} bxa5 {
[%emt 0:00:44]} 32. Bxe5+ {[%emt 0:03:01]} Rxe5 {[%emt 0:00:23]} 33. Ne7 {
[%emt 0:00:08]} Rg5+ {[%emt 0:00:20]} 34. Kf1 {[%emt 0:01:00]} Rc8 {[%emt 0:00:
00]} 35. Nxc8 {[%emt 0:00:23]} Kxc8 {[%emt 0:00:02]} 36. Rf7 {[%emt 0:00:27]}
c5 {[%emt 0:00:59]} 37. h4 {[%emt 0:02:58]} Rh5 {[%emt 0:00:30]} 38. Rxg7 {
[%emt 0:01:03]} Rxh4 {[%emt 0:00:35]} 39. Rbg2 {[%emt 0:00:35]} a4 {[%emt 0:00:
00]} 40. Rf7 {[%emt 0:01:06]} Rh8 {[%emt 0:00:10]} 41. Rxf6 {[%emt 0:32:28]} a5
{[%emt 0:30:25]} 42. Ke2 {[%emt 0:00:49]} Rd8 {[%emt 0:00:36]} 43. Ke3 {
[%emt 0:00:00]} a3 {[%emt 0:00:00]} 44. Rf5 {[%emt 0:00:00]} Kc7 {[%emt 0:00:
00]} 45. Rc2 {[%emt 0:00:00]} Kb6 {[%emt 0:00:00]} 46. Rd5 {[%emt 0:00:00]} Rh8
{[%emt 0:00:00]} 47. e5 {[%emt 0:00:00]} Kb5 {[%emt 0:00:00]} 48. Rd1 {[%emt 0:
00:00]} Ka4 {[%emt 0:00:00]} 49. Rb1 {[%emt 0:00:00]} c4 {[%emt 0:00:00]} 50.
Ke4 {[%emt 0:00:00]} c3 {[%emt 0:00:00]} 51. f4 {[%emt 0:04:26]} Rd8 {[%emt 0:
00:00]} 52. f5 {[%emt 0:00:37]} Rd2 {[%emt 0:00:00]} 53. Rxd2 {[%emt 0:00:28]}
cxd2 {[%emt 0:00:00]} 54. e6 {[%emt 0:00:27]} a2 {[%emt 0:00:00]} 55. Rd1 {
[%emt 0:00:35]} Kb3 {[%emt 0:00:00]} 56. Kd3 {[%emt 0:00:25]} Be7 {[%emt 0:00:
00]} 0-1

[Event "44th Chess Olympiad Open 2022"]
[Site "Chennai"]
[Date "2022.08.07"]
[Round "9.40"]
[White "Markov, Mikhail"]
[Black "Ahmad, Al Khatib"]
[Result "1-0"]
[WhiteElo "2333"]
[BlackElo "2244"]
[Annotator "RC"]
[PlyCount "135"]
[EventDate "2022.??.??"]
[TimeControl "60"]

1. c4 {[%emt 0:00:08]} e6 {[%emt 0:00:25]} 2. Nf3 {[%emt 0:00:11]} d5 {[%emt 0:
00:00]} 3. d4 {[%emt 0:00:05]} Nf6 {[%emt 0:00:08]} 4. g3 {[%emt 0:00:22]} Bb4+
{[%emt 0:00:10]} 5. Nbd2 {[%emt 0:00:42]} c5 {[%emt 0:05:22]} 6. dxc5 {[%emt 0:
00:00]} Bxc5 {[%emt 0:00:13]} 7. Bg2 {[%emt 0:01:11]} dxc4 {[%emt 0:10:54]} 8.
O-O {[%emt 0:06:50]} c3 {[%emt 0:03:29]} 9. bxc3 {[%emt 0:02:27]} O-O {[%emt 0:
00:00]} 10. Nb3 {[%emt 0:04:43]} Qxd1 {[%emt 0:03:31]} 11. Rxd1 {[%emt 0:00:07]
} Be7 {[%emt 0:01:18]} 12. c4 {[%emt 0:07:24]} Nc6 {[%emt 0:19:08]} 13. Bb2 {
[%emt 0:05:10]} Bd7 {[%emt 0:03:11]} 14. Ne5 {[%emt 0:11:35]} Nxe5 {[%emt 0:00:
00]} 15. Bxe5 {[%emt 0:00:47]} Bc6 {[%emt 0:07:48]} 16. Bxc6 {[%emt 0:00:09]}
bxc6 {[%emt 0:00:06]} 17. Na5 {[%emt 0:00:06]} Rfc8 {[%emt 0:04:47]} 18. Rab1 {
[%emt 0:00:46]} Bd8 {[%emt 0:08:09]} 19. Nb7 {[%emt 0:03:01]} Ng4 {[%emt 0:00:
00]} 20. Bd6 {[%emt 0:01:36]} Bc7 {[%emt 0:01:58]} 21. Bxc7 {[%emt 0:00:23]}
Rxc7 {[%emt 0:00:07]} 22. Nc5 {[%emt 0:00:13]} Kf8 {[%emt 0:04:28]} 23. Na6 {
[%emt 0:12:27]} Re7 {[%emt 0:01:15]} 24. c5 {[%emt 0:01:48]} Nf6 {[%emt 0:00:
00]} 25. Rd4 {[%emt 0:05:37]} Nd5 {[%emt 0:03:13]} 26. e4 {[%emt 0:04:10]} Nc3
{[%emt 0:00:20]} 27. Rb2 {[%emt 0:00:12]} Nb5 {[%emt 0:00:39]} 28. Rdb4 {
[%emt 0:08:19]} e5 {[%emt 0:00:06]} 29. a4 {[%emt 0:00:57]} Nd4 {[%emt 0:00:04]
} 30. f4 {[%emt 0:04:28]} f6 {[%emt 0:00:15]} 31. fxe5 {[%emt 0:00:16]} Nf3+ {
[%emt 0:00:38]} 32. Kg2 {[%emt 0:00:48]} Nxe5 {[%emt 0:00:04]} 33. Rd4 {
[%emt 0:01:24]} Rc8 {[%emt 0:01:02]} 34. h3 {[%emt 0:01:59]} Nf7 {[%emt 0:00:
00]} 35. a5 {[%emt 0:01:28]} Ne5 {[%emt 0:00:53]} 36. Rb3 {[%emt 0:00:40]} Ree8
{[%emt 0:00:30]} 37. Rb7 {[%emt 0:05:50]} Re7 {[%emt 0:01:03]} 38. Rb1 {
[%emt 0:00:19]} Ree8 {[%emt 0:00:15]} 39. Rd6 {[%emt 0:00:59]} Red8 {[%emt 0:
00:00]} 40. Nc7 {[%emt 0:03:00]} Rxd6 {[%emt 0:00:31]} 41. cxd6 {[%emt 0:34:02]
} Kg8 {[%emt 0:26:40]} 42. Rb7 {[%emt 0:00:00]} Rd8 {[%emt 0:00:00]} 43. Rxa7 {
[%emt 0:00:00]} Rxd6 {[%emt 0:00:00]} 44. Rb7 {[%emt 0:00:00]} Rd2+ {[%emt 0:
00:00]} 45. Kf1 {[%emt 0:00:00]} Nf3 {[%emt 0:03:23]} 46. Rb3 {[%emt 0:00:00]}
Rd7 {[%emt 0:01:18]} 47. Rb8+ {[%emt 0:00:00]} Kf7 {[%emt 0:00:15]} 48. a6 {
[%emt 0:00:00]} Rd2 {[%emt 0:01:22]} 49. Rb3 {[%emt 0:00:00]} Rd7 {[%emt 0:00:
00]} 50. a7 {[%emt 0:00:00]} Nd2+ {[%emt 0:00:33]} 51. Ke1 {[%emt 0:00:00]}
Nxb3 {[%emt 0:00:31]} 52. a8=Q {[%emt 0:00:00]} Rxc7 {[%emt 0:00:20]} 53. Qb8 {
[%emt 0:00:00]} Re7 {[%emt 0:00:24]} 54. Qxb3+ {[%emt 0:00:00]} Kg6 {[%emt 0:
00:00]} 55. Qd3 {[%emt 0:00:00]} Re5 {[%emt 0:00:48]} 56. Kf2 {[%emt 0:00:00]}
h5 {[%emt 0:00:29]} 57. Kf3 {[%emt 0:00:00]} Kh6 {[%emt 0:01:08]} 58. Qd8 {
[%emt 0:00:00]} c5 {[%emt 0:00:00]} 59. Kf4 {[%emt 0:00:00]} g5+ {[%emt 0:00:
00]} 60. Kf3 {[%emt 0:00:00]} Kg7 {[%emt 0:00:27]} 61. Qc8 {[%emt 0:00:00]} Kf7
{[%emt 0:01:11]} 62. Qh8 {[%emt 0:00:00]} Kg6 {[%emt 0:00:00]} 63. Qg8+ {
[%emt 0:00:00]} Kh6 {[%emt 0:00:00]} 64. Qf7 {[%emt 0:00:00]} g4+ {[%emt 0:00:
00]} 65. hxg4 {[%emt 0:00:00]} hxg4+ {[%emt 0:00:01]} 66. Kf4 {[%emt 0:00:00]}
Rg5 {[%emt 0:00:44]} 67. Qxf6+ {[%emt 0:00:00]} Rg6 {[%emt 0:00:03]} 68. Qh8# {
[%emt 0:00:00]} 1-0

[Event "44th Chess Olympiad Open 2022"]
[Site "Chennai"]
[Date "2022.08.07"]
[Round "9.40"]
[White "Mansour, Sameer"]
[Black "Tologontegin, Semetey"]
[Result "0-1"]
[WhiteElo "2275"]
[BlackElo "2378"]
[Annotator "RC"]
[PlyCount "90"]
[EventDate "2022.??.??"]
[TimeControl "60"]

1. c4 {[%emt 0:00:03]} b6 {[%emt 0:02:17]} 2. d4 {[%emt 0:01:00]} Bb7 {[%emt 0:
00:00]} 3. Nc3 {[%emt 0:00:19]} e6 {[%emt 0:00:09]} 4. e4 {[%emt 0:00:48]} Bb4
{[%emt 0:00:05]} 5. f3 {[%emt 0:00:30]} Ne7 {[%emt 0:02:03]} 6. Bd3 {[%emt 0:
00:00]} f5 {[%emt 0:01:27]} 7. Nge2 {[%emt 0:08:18]} fxe4 {[%emt 0:08:12]} 8.
fxe4 {[%emt 0:00:04]} O-O {[%emt 0:00:29]} 9. a3 {[%emt 0:04:30]} Bxc3+ {
[%emt 0:00:18]} 10. Nxc3 {[%emt 0:00:11]} Nbc6 {[%emt 0:27:18]} 11. Be3 {
[%emt 0:04:33]} e5 {[%emt 0:00:05]} 12. d5 {[%emt 0:03:22]} Nd4 {[%emt 0:00:07]
} 13. Qh5 {[%emt 0:05:36]} Nb3 {[%emt 0:13:14]} 14. Rd1 {[%emt 0:00:12]} Ng6 {
[%emt 0:00:14]} 15. Bc2 {[%emt 0:08:47]} Nd4 {[%emt 0:09:43]} 16. Kd2 {[%emt 0:
00:00]} Qe7 {[%emt 0:09:28]} 17. Bd3 {[%emt 0:06:00]} Nf4 {[%emt 0:02:15]} 18.
Bxf4 {[%emt 0:01:35]} Rxf4 {[%emt 0:00:04]} 19. Rdf1 {[%emt 0:00:35]} Rh4 {
[%emt 0:04:12]} 20. Rf7 {[%emt 0:07:54]} Qd8 {[%emt 0:00:34]} 21. Qxe5 {
[%emt 0:00:08]} Kxf7 {[%emt 0:00:10]} 22. Qxd4 {[%emt 0:01:39]} Qg5+ {[%emt 0:
00:00]} 23. Kd1 {[%emt 0:00:34]} Qxg2 {[%emt 0:04:32]} 24. Rg1 {[%emt 0:05:22]}
Qf3+ {[%emt 0:00:05]} 25. Be2 {[%emt 0:06:01]} Qf6 {[%emt 0:00:06]} 26. Qe3 {
[%emt 0:00:44]} Kg8 {[%emt 0:00:45]} 27. Bg4 {[%emt 0:09:27]} d6 {[%emt 0:00:
00]} 28. e5 {[%emt 0:05:44]} Qxe5 {[%emt 0:02:10]} 29. Qxe5 {[%emt 0:01:04]}
dxe5 {[%emt 0:00:05]} 30. Nb5 {[%emt 0:03:11]} Bc8 {[%emt 0:04:08]} 31. Be2 {
[%emt 0:00:10]} Bd7 {[%emt 0:01:15]} 32. Nxc7 {[%emt 0:00:26]} Rc8 {[%emt 0:00:
00]} 33. Ne6 {[%emt 0:01:50]} Bxe6 {[%emt 0:00:55]} 34. dxe6 {[%emt 0:00:03]}
Re8 {[%emt 0:00:41]} 35. Bg4 {[%emt 0:01:28]} h5 {[%emt 0:07:10]} 36. Bf5 {
[%emt 0:00:08]} Rxh2 {[%emt 0:01:00]} 37. Kc1 {[%emt 0:02:05]} Kf8 {[%emt 0:00:
00]} 38. Rf1 {[%emt 0:01:08]} Ke7 {[%emt 0:00:11]} 39. Bg6 {[%emt 0:00:15]} Rf8
{[%emt 0:00:24]} 40. Bf7 {[%emt 0:00:07]} Rc8 {[%emt 0:00:14]} 41. b3 {[%emt 0:
00:00]} b5 {[%emt 0:31:37]} 42. Rd1 {[%emt 0:00:00]} Rc7 {[%emt 0:00:00]} 43.
Rg1 {[%emt 0:00:00]} bxc4 {[%emt 0:00:00]} 44. b4 {[%emt 0:00:00]} h4 {[%emt 0:
00:00]} 45. Rxg7 {[%emt 0:00:00]} Kd6 {[%emt 0:00:00]} 0-1